[Event "GrandPrix_30.05"]
[Site "Chess.com"]
[Date "2020.05.30"]
[Round "2"]
[White "Mesropov_Konstantin"]
[Black "EvgenyRomanov"]
[Result "1-0"]
[WhiteElo "2337"]
[BlackElo "2029"]
[TimeControl "600+2"]
[EndTime "8:55:54 PDT"]
[Termination "Mesropov_Konstantin won by resignation"]

1. c4 {[%clk 0:10:01.9]} 1... e5 {[%clk 0:09:54.1]} 2. g3 {[%clk 0:09:59.7]}
2... Nf6 {[%clk 0:09:49.9]} 3. Bg2 {[%clk 0:09:58.9]} 3... c6 {[%clk 0:09:50.4]}
4. Nf3 {[%clk 0:09:57]} 4... e4 {[%clk 0:09:51.2]} 5. Nd4 {[%clk 0:09:55.7]}
5... d5 {[%clk 0:09:52.6]} 6. cxd5 {[%clk 0:09:56.1]} 6... Qxd5 {[%clk
0:09:52.8]} 7. e3 {[%clk 0:09:57.5]} 7... Bg4 {[%clk 0:09:45.2]} 8. Qc2 {[%clk
0:09:17.6]} 8... Na6 {[%clk 0:09:43.6]} 9. Nc3 {[%clk 0:09:07.3]} 9... Nb4
{[%clk 0:09:43.1]} 10. Qb1 {[%clk 0:08:49.1]} 10... Nd3+ {[%clk 0:09:11.2]} 11.
Qxd3 {[%clk 0:08:48.2]} 11... exd3 {[%clk 0:09:13.1]} 12. Nxd5 {[%clk
0:08:49.4]} 12... Nxd5 {[%clk 0:09:12.6]} 13. b3 {[%clk 0:08:10.7]} 13... Bc5
{[%clk 0:07:41.3]} 14. Bb2 {[%clk 0:08:06.4]} 14... Nb4 {[%clk 0:07:35.6]} 15.
O-O {[%clk 0:07:33.1]} 15... Bxd4 {[%clk 0:07:03]} 16. Bxd4 {[%clk 0:07:32.2]}
16... f6 {[%clk 0:06:50.7]} 17. f3 {[%clk 0:07:09.7]} 17... Be6 {[%clk 0:06:47]}
18. Bc3 {[%clk 0:07:10.7]} 18... Nc2 {[%clk 0:06:44.8]} 19. Rab1 {[%clk
0:06:31.3]} 19... a5 {[%clk 0:06:35.8]} 20. f4 {[%clk 0:06:28.4]} 20... Bg4
{[%clk 0:05:50.8]} 21. Rfc1 {[%clk 0:05:59.2]} 21... Kf7 {[%clk 0:05:07.5]} 22.
a4 {[%clk 0:05:52.3]} 22... Rhd8 {[%clk 0:04:40.6]} 23. Kf2 {[%clk 0:05:45.4]}
23... h5 {[%clk 0:04:37.8]} 24. e4 {[%clk 0:05:11.6]} 24... h4 {[%clk
0:03:52.9]} 25. gxh4 {[%clk 0:04:39.5]} 25... Rd7 {[%clk 0:03:52.8]} 26. h3
{[%clk 0:04:12.8]} 26... Bh5 {[%clk 0:03:52.8]} 27. Bf3 {[%clk 0:03:39.1]} 27...
Bxf3 {[%clk 0:03:51.7]} 28. Kxf3 {[%clk 0:03:40.2]} 28... b5 {[%clk 0:03:33]}
29. Rg1 {[%clk 0:03:30]} 29... b4 {[%clk 0:03:16.1]} 30. Bb2 {[%clk 0:03:26.4]}
30... c5 {[%clk 0:03:11.2]} 31. Rg2 {[%clk 0:03:03.2]} 31... Rh8 {[%clk
0:02:36.7]} 32. Rbg1 {[%clk 0:03:00.7]} 32... Rh7 {[%clk 0:02:36.2]} 33. e5
{[%clk 0:02:49.5]} 33... Nd4+ {[%clk 0:02:11.5]} 34. Bxd4 {[%clk 0:02:37.1]}
34... Rxd4 {[%clk 0:02:13.4]} 35. Rg4 {[%clk 0:02:28.2]} 35... Ke6 {[%clk
0:01:26.9]} 36. Rxg7 {[%clk 0:01:55.5]} 36... Rxh4 {[%clk 0:01:25.2]} 37. R1g4
{[%clk 0:01:37.7]} 37... Rxh3+ {[%clk 0:00:52.4]} 38. Kg2 {[%clk 0:01:37.7]}
38... Rh5 {[%clk 0:00:50.7]} 39. R7g6 {[%clk 0:01:21.9]} 39... Rf5 {[%clk
0:00:48.2]} 40. Rxf6+ {[%clk 0:01:13.1]} 40... Rxf6 {[%clk 0:00:47.5]} 41. exf6
{[%clk 0:01:12.7]} 41... Kxf6 {[%clk 0:00:41.5]} 42. Kf3 {[%clk 0:01:05]} 42...
c4 {[%clk 0:00:34.7]} 43. Ke3 {[%clk 0:00:53.6]} 43... Rd8 {[%clk 0:00:20.6]}
44. bxc4 {[%clk 0:00:53.5]} 44... b3 {[%clk 0:00:19.3]} 45. Rg1 {[%clk 0:00:48]}
45... Rb8 {[%clk 0:00:12.8]} 46. Kxd3 {[%clk 0:00:45.2]} 46... Kf5 {[%clk
0:00:13.4]} 47. Rb1 {[%clk 0:00:39.5]} 47... Kxf4 {[%clk 0:00:13.3]} 48. Kc3
{[%clk 0:00:40.8]} 48... Rb4 {[%clk 0:00:12.4]} 49. Rxb3 {[%clk 0:00:40]} 49...
Rxa4 {[%clk 0:00:13.7]} 50. Rb8 {[%clk 0:00:36.4]} 50... Ra1 {[%clk 0:00:12.8]}
51. Kd4 {[%clk 0:00:34.9]} 51... a4 {[%clk 0:00:11.6]} 52. Rf8+ {[%clk
0:00:35.6]} 52... Kg5 {[%clk 0:00:12.4]} 53. Kd5 {[%clk 0:00:31.4]} 53... a3
{[%clk 0:00:11.8]} 54. Ra8 {[%clk 0:00:30.5]} 54... Kf6 {[%clk 0:00:10.2]} 55.
d4 {[%clk 0:00:28.1]} 55... a2 {[%clk 0:00:11.3]} 56. Ra7 {[%clk 0:00:27.3]}
56... Kf5 {[%clk 0:00:10.6]} 57. c5 {[%clk 0:00:27.3]} 57... Kf4 {[%clk
0:00:09.5]} 58. c6 {[%clk 0:00:23.2]} 58... Ke3 {[%clk 0:00:09.8]} 59. Ra3+
{[%clk 0:00:23]} 59... Kf4 {[%clk 0:00:09.2]} 60. Kd6 {[%clk 0:00:19.6]} 60...
Rd1 {[%clk 0:00:04.4]} 61. Rxa2 {[%clk 0:00:20.3]} 61... Rxd4+ {[%clk
0:00:04.7]} 62. Kc5 {[%clk 0:00:18.5]} 62... Rd1 {[%clk 0:00:05.1]} 63. Rc2
{[%clk 0:00:18.5]} 1-0

[Event "GrandPrix_30.05"]
[Site "Chess.com"]
[Date "2020.05.30"]
[Round "2"]
[White "ArnaudovP"]
[Black "dzhumagaliev"]
[Result "1/2-1/2"]
[WhiteElo "2238"]
[BlackElo "2120"]
[TimeControl "600+2"]
[EndTime "8:55:55 PDT"]
[Termination "Game drawn - insufficient material"]

1. Nf3 {[%clk 0:10:01.9]} 1... h5 {[%clk 0:10:00]} 2. d4 {[%clk 0:10:01.2]} 2...
h4 {[%clk 0:10:01.1]} 3. h3 {[%clk 0:09:55]} 3... d5 {[%clk 0:09:58.3]} 4. c4
{[%clk 0:09:54.3]} 4... c6 {[%clk 0:09:59.1]} 5. Nc3 {[%clk 0:09:48.9]} 5... Nf6
{[%clk 0:09:57.1]} 6. cxd5 {[%clk 0:09:49.3]} 6... cxd5 {[%clk 0:09:56.4]} 7.
Bg5 {[%clk 0:09:47.5]} 7... Ne4 {[%clk 0:09:55.8]} 8. Bxh4 {[%clk 0:09:28.5]}
8... f6 {[%clk 0:09:56.3]} 9. e3 {[%clk 0:09:12.6]} 9... g5 {[%clk 0:09:56.1]}
10. Bg3 {[%clk 0:09:13.5]} 10... Nxg3 {[%clk 0:09:57.3]} 11. fxg3 {[%clk
0:09:14.6]} 11... Qd6 {[%clk 0:09:39]} 12. Kf2 {[%clk 0:09:11.5]} 12... a6
{[%clk 0:09:38.3]} 13. Bd3 {[%clk 0:09:10.1]} 13... Nc6 {[%clk 0:09:31.4]} 14.
Bg6+ {[%clk 0:08:58.4]} 14... Kd8 {[%clk 0:09:31.2]} 15. e4 {[%clk 0:08:58.9]}
15... g4 {[%clk 0:09:13.2]} 16. hxg4 {[%clk 0:08:43.9]} 16... Rxh1 {[%clk
0:09:12.7]} 17. Qxh1 {[%clk 0:08:44]} 17... dxe4 {[%clk 0:09:12.5]} 18. Bxe4
{[%clk 0:08:08.4]} 18... Bxg4 {[%clk 0:09:08]} 19. Qh8 {[%clk 0:07:52.3]} 19...
Kd7 {[%clk 0:08:55.1]} 20. Rd1 {[%clk 0:07:34.1]} 20... Rd8 {[%clk 0:08:09]} 21.
Qg8 {[%clk 0:05:23.4]} 21... Bxf3 {[%clk 0:06:28]} 22. Bxf3 {[%clk 0:05:22.4]}
22... Kc7 {[%clk 0:06:19.3]} 23. Qc4 {[%clk 0:05:11.6]} 23... e5 {[%clk
0:04:47.4]} 24. Bxc6 {[%clk 0:04:34.2]} 24... bxc6 {[%clk 0:04:10.9]} 25. dxe5
{[%clk 0:04:06.2]} 25... Qxe5 {[%clk 0:04:02.8]} 26. Rxd8 {[%clk 0:03:32.8]}
26... Bc5+ {[%clk 0:03:49.8]} 27. Kf1 {[%clk 0:03:07]} 27... Kxd8 {[%clk
0:03:50.3]} 28. Ne4 {[%clk 0:02:51.1]} 28... Be7 {[%clk 0:03:01.4]} 29. Qxc6
{[%clk 0:02:34.7]} 29... Qxb2 {[%clk 0:03:01.5]} 30. Qd5+ {[%clk 0:02:31.5]}
30... Kc7 {[%clk 0:02:41]} 31. Qc4+ {[%clk 0:02:27.2]} 31... Kd8 {[%clk
0:02:35.1]} 32. g4 {[%clk 0:01:51.6]} 32... a5 {[%clk 0:02:02.3]} 33. a4 {[%clk
0:01:49]} 33... Bb4 {[%clk 0:01:44.2]} 34. Qg8+ {[%clk 0:01:28.9]} 34... Ke7
{[%clk 0:01:32.9]} 35. Qh7+ {[%clk 0:01:12.6]} 35... Ke8 {[%clk 0:01:09]} 36.
Kg1 {[%clk 0:00:51.9]} 36... Qc1+ {[%clk 0:00:40.1]} 37. Kh2 {[%clk 0:00:50.8]}
37... Qf4+ {[%clk 0:00:37.9]} 38. g3 {[%clk 0:00:48.1]} 38... Qf3 {[%clk
0:00:38.1]} 39. Qf5 {[%clk 0:00:32.2]} 39... Qe2+ {[%clk 0:00:27]} 40. Kh3
{[%clk 0:00:32.6]} 40... Qd1 {[%clk 0:00:14]} 41. Qe6+ {[%clk 0:00:17.6]} 41...
Be7 {[%clk 0:00:10.3]} 42. Nxf6+ {[%clk 0:00:17.3]} 42... Kd8 {[%clk 0:00:11.7]}
43. Qd5+ {[%clk 0:00:16.9]} 43... Qxd5 {[%clk 0:00:11.6]} 44. Nxd5 {[%clk
0:00:18]} 44... Bg5 {[%clk 0:00:13.5]} 45. Nc3 {[%clk 0:00:16.8]} 45... Kd7
{[%clk 0:00:13]} 46. Ne4 {[%clk 0:00:17.8]} 46... Bh6 {[%clk 0:00:13.5]} 47. g5
{[%clk 0:00:19.2]} 47... Bf8 {[%clk 0:00:14.2]} 48. Kg4 {[%clk 0:00:20.3]} 48...
Ke6 {[%clk 0:00:15.6]} 49. Kf4 {[%clk 0:00:21.4]} 49... Kd5 {[%clk 0:00:16.9]}
50. Kf5 {[%clk 0:00:22.3]} 50... Kc4 {[%clk 0:00:18.2]} 51. g6 {[%clk
0:00:23.4]} 51... Kb4 {[%clk 0:00:18.9]} 52. Kf6 {[%clk 0:00:22.8]} 52... Kxa4
{[%clk 0:00:20.1]} 53. g7 {[%clk 0:00:24.2]} 53... Bxg7+ {[%clk 0:00:21.4]} 54.
Kxg7 {[%clk 0:00:25.4]} 54... Kb4 {[%clk 0:00:22.7]} 55. g4 {[%clk 0:00:15.9]}
55... a4 {[%clk 0:00:24]} 56. Nf2 {[%clk 0:00:15.1]} 56... a3 {[%clk 0:00:15.8]}
57. Nd3+ {[%clk 0:00:14.8]} 57... Kc3 {[%clk 0:00:17.1]} 58. Nc1 {[%clk
0:00:15.7]} 58... Kb2 {[%clk 0:00:18]} 59. Nd3+ {[%clk 0:00:13.5]} 59... Kc3
{[%clk 0:00:19.1]} 60. Nc1 {[%clk 0:00:08.3]} 60... Kc2 {[%clk 0:00:20.1]} 61.
Na2 {[%clk 0:00:09.2]} 61... Kb2 {[%clk 0:00:16.7]} 62. g5 {[%clk 0:00:10.1]}
62... Kxa2 {[%clk 0:00:17.4]} 63. g6 {[%clk 0:00:11.5]} 63... Kb1 {[%clk
0:00:18.3]} 64. Kh7 {[%clk 0:00:12.2]} 64... a2 {[%clk 0:00:19.4]} 65. g7 {[%clk
0:00:13.6]} 65... a1=Q {[%clk 0:00:20.9]} 66. g8=Q {[%clk 0:00:15.1]} 66... Qc3
{[%clk 0:00:21.3]} 67. Qg6+ {[%clk 0:00:15.9]} 67... Qc2 {[%clk 0:00:22.6]} 68.
Qxc2+ {[%clk 0:00:16.6]} 68... Kxc2 {[%clk 0:00:24.5]} 1/2-1/2

[Event "GrandPrix_30.05"]
[Site "Chess.com"]
[Date "2020.05.30"]
[Round "2"]
[White "lilleper1"]
[Black "MaxVavulin"]
[Result "0-1"]
[WhiteElo "2409"]
[BlackElo "2175"]
[TimeControl "600+2"]
[EndTime "8:55:56 PDT"]
[Termination "MaxVavulin won by resignation"]

1. d4 {[%clk 0:10:00.6]} 1... Nf6 {[%clk 0:09:57.6]} 2. c4 {[%clk 0:10:00.9]}
2... e6 {[%clk 0:09:58.3]} 3. Nf3 {[%clk 0:10:01.6]} 3... b6 {[%clk 0:09:58.8]}
4. g3 {[%clk 0:10:02]} 4... Ba6 {[%clk 0:09:59.3]} 5. Qc2 {[%clk 0:10:01.8]}
5... Bb7 {[%clk 0:09:46]} 6. Bg2 {[%clk 0:10:02.3]} 6... c5 {[%clk 0:09:46.9]}
7. d5 {[%clk 0:09:37.5]} 7... exd5 {[%clk 0:09:47.1]} 8. cxd5 {[%clk 0:09:35.5]}
8... Nxd5 {[%clk 0:09:37.9]} 9. O-O {[%clk 0:09:35.5]} 9... Be7 {[%clk
0:09:25.6]} 10. Rd1 {[%clk 0:09:25.6]} 10... Nc6 {[%clk 0:09:22.1]} 11. a3
{[%clk 0:09:26.1]} 11... Nc7 {[%clk 0:09:04]} 12. Nc3 {[%clk 0:08:55.2]} 12...
O-O {[%clk 0:08:41.6]} 13. Bf4 {[%clk 0:08:42.4]} 13... Ne6 {[%clk 0:08:25.4]}
14. e3 {[%clk 0:07:46.2]} 14... Re8 {[%clk 0:07:35.6]} 15. Ne5 {[%clk
0:06:38.8]} 15... Qc8 {[%clk 0:05:39.9]} 16. Nd5 {[%clk 0:04:07.8]} 16... Nxf4
{[%clk 0:04:06.5]} 17. gxf4 {[%clk 0:04:07.4]} 17... Nxe5 {[%clk 0:03:46.9]} 18.
fxe5 {[%clk 0:04:07.4]} 18... Bf8 {[%clk 0:03:45.3]} 19. Qf5 {[%clk 0:03:05.8]}
19... Re6 {[%clk 0:02:48.2]} 20. Be4 {[%clk 0:02:17.1]} 20... Rh6 {[%clk
0:02:02.1]} 21. Kh1 {[%clk 0:01:52.8]} 21... d6 {[%clk 0:01:46.4]} 22. Qxc8
{[%clk 0:01:13.7]} 22... Rxc8 {[%clk 0:01:46.9]} 23. Nf6+ {[%clk 0:00:57.9]}
23... gxf6 {[%clk 0:01:47]} 24. Bxb7 {[%clk 0:00:58.9]} 24... Rd8 {[%clk
0:01:21.5]} 25. exd6 {[%clk 0:00:52]} 25... Bxd6 {[%clk 0:00:43.8]} 26. f4
{[%clk 0:00:52.9]} 26... Rh3 {[%clk 0:00:38.4]} 27. Rd3 {[%clk 0:00:30.8]} 27...
c4 {[%clk 0:00:18.9]} 28. Rd4 {[%clk 0:00:31.9]} 28... Rxe3 {[%clk 0:00:17.9]}
29. Rad1 {[%clk 0:00:32.3]} 29... Rd3 {[%clk 0:00:16.9]} 30. R1xd3 {[%clk
0:00:31.7]} 30... cxd3 {[%clk 0:00:18.5]} 31. Rxd3 {[%clk 0:00:32]} 31... Kf8
{[%clk 0:00:20.1]} 32. Kg2 {[%clk 0:00:32.2]} 32... Ke7 {[%clk 0:00:21.1]} 33.
Kf3 {[%clk 0:00:30.3]} 33... Rg8 {[%clk 0:00:20.2]} 34. Be4 {[%clk 0:00:26.7]}
34... h5 {[%clk 0:00:20.3]} 35. Bf5 {[%clk 0:00:25.6]} 35... Rg1 {[%clk
0:00:19]} 36. Re3+ {[%clk 0:00:23.2]} 36... Kf8 {[%clk 0:00:19.9]} 37. Re2
{[%clk 0:00:17.5]} 37... Rf1+ {[%clk 0:00:18.3]} 38. Rf2 {[%clk 0:00:17.8]}
38... Rxf2+ {[%clk 0:00:14.1]} 39. Kxf2 {[%clk 0:00:18.9]} 39... Bxf4 {[%clk
0:00:15.7]} 40. b3 {[%clk 0:00:13.9]} 40... Bxh2 {[%clk 0:00:16.5]} 41. Kf3
{[%clk 0:00:15.1]} 41... Ke7 {[%clk 0:00:13.8]} 42. Ke4 {[%clk 0:00:16.2]} 42...
Kd6 {[%clk 0:00:15]} 43. Bh3 {[%clk 0:00:14.5]} 43... Be5 {[%clk 0:00:14.8]} 44.
Bf5 {[%clk 0:00:13.7]} 44... Bb2 {[%clk 0:00:15.7]} 45. a4 {[%clk 0:00:14.8]}
45... Kc5 {[%clk 0:00:17.3]} 46. Kd3 {[%clk 0:00:09.3]} 46... Kb4 {[%clk
0:00:18.1]} 47. Kc2 {[%clk 0:00:09.8]} 47... Be5 {[%clk 0:00:19.6]} 48. Bh3
{[%clk 0:00:10.4]} 48... h4 {[%clk 0:00:20.1]} 49. Bf5 {[%clk 0:00:11.1]} 49...
Bd6 {[%clk 0:00:16]} 50. Bd7 {[%clk 0:00:10.6]} 50... Kc5 {[%clk 0:00:16.4]} 51.
Kd3 {[%clk 0:00:09.1]} 51... Kd5 {[%clk 0:00:17.3]} 52. Bh3 {[%clk 0:00:09]}
52... Ke5 {[%clk 0:00:16.8]} 53. Ke3 {[%clk 0:00:09.5]} 53... Bc5+ {[%clk
0:00:16.8]} 54. Kf3 {[%clk 0:00:09]} 54... f5 {[%clk 0:00:17.7]} 55. Bf1 {[%clk
0:00:08.9]} 55... f4 {[%clk 0:00:18.6]} 56. Bh3 {[%clk 0:00:07.3]} 56... Bd6
{[%clk 0:00:17]} 57. Bf1 {[%clk 0:00:07.6]} 57... Kd4 {[%clk 0:00:17.7]} 58. Kg4
{[%clk 0:00:07.6]} 58... Ke3 {[%clk 0:00:16.2]} 59. Bg2 {[%clk 0:00:07.8]} 59...
f3 {[%clk 0:00:12.4]} 60. Bf1 {[%clk 0:00:04.2]} 60... f2 {[%clk 0:00:09.2]} 61.
Kh3 {[%clk 0:00:04.4]} 61... Kd2 {[%clk 0:00:10.7]} 62. Kg2 {[%clk 0:00:03.2]}
62... Ke1 {[%clk 0:00:12.2]} 63. Bc4 {[%clk 0:00:03.7]} 63... h3+ {[%clk
0:00:13.3]} 64. Kxh3 {[%clk 0:00:03.1]} 64... f1=Q+ {[%clk 0:00:14.3]} 0-1

[Event "GrandPrix_30.05"]
[Site "Chess.com"]
[Date "2020.05.30"]
[Round "2"]
[White "ZoranRunic1"]
[Black "rfhfb"]
[Result "1/2-1/2"]
[WhiteElo "2275"]
[BlackElo "2131"]
[TimeControl "600+2"]
[EndTime "8:55:56 PDT"]
[Termination "Game drawn - insufficient material"]

1. e4 {[%clk 0:10:01.9]} 1... e5 {[%clk 0:10:00.6]} 2. Nc3 {[%clk 0:10:00.7]}
2... Nc6 {[%clk 0:09:58]} 3. Bc4 {[%clk 0:10:00.7]} 3... Nf6 {[%clk 0:09:37.9]}
4. d3 {[%clk 0:10:01]} 4... Bc5 {[%clk 0:09:35.3]} 5. f4 {[%clk 0:10:01.1]} 5...
exf4 {[%clk 0:09:07.6]} 6. Bxf4 {[%clk 0:09:59.9]} 6... d6 {[%clk 0:09:08.7]} 7.
Nf3 {[%clk 0:09:57.4]} 7... Bg4 {[%clk 0:09:02.4]} 8. Qd2 {[%clk 0:09:53.7]}
8... Nd4 {[%clk 0:08:12.7]} 9. Nxd4 {[%clk 0:08:08.2]} 9... Bxd4 {[%clk
0:08:11.2]} 10. h3 {[%clk 0:08:06.8]} 10... Be6 {[%clk 0:08:09.6]} 11. Bb3
{[%clk 0:07:55]} 11... Bxb3 {[%clk 0:06:28.1]} 12. axb3 {[%clk 0:07:53.2]} 12...
c6 {[%clk 0:06:29]} 13. O-O-O {[%clk 0:07:42.1]} 13... Qa5 {[%clk 0:05:47.9]}
14. Kb1 {[%clk 0:07:28.9]} 14... O-O-O {[%clk 0:05:45.4]} 15. Rhf1 {[%clk
0:07:25.8]} 15... Rhe8 {[%clk 0:05:27]} 16. Bh2 {[%clk 0:06:55.9]} 16... Be5
{[%clk 0:04:23.6]} 17. Rf5 {[%clk 0:06:11.1]} 17... Qb4 {[%clk 0:04:00.9]} 18.
Bxe5 {[%clk 0:05:53.3]} 18... Rxe5 {[%clk 0:03:49.8]} 19. Rxe5 {[%clk
0:05:50.6]} 19... dxe5 {[%clk 0:03:50.5]} 20. Qg5 {[%clk 0:05:49.3]} 20... Qe7
{[%clk 0:03:24.7]} 21. Rf1 {[%clk 0:04:56.1]} 21... Rg8 {[%clk 0:02:42.2]} 22.
Rf5 {[%clk 0:04:48.6]} 22... Qd8 {[%clk 0:01:20.5]} 23. Rxe5 {[%clk 0:04:41.8]}
23... Nd7 {[%clk 0:01:21.4]} 24. Qxd8+ {[%clk 0:04:33.8]} 24... Kxd8 {[%clk
0:01:23.3]} 25. Rf5 {[%clk 0:04:32.2]} 25... Ke7 {[%clk 0:01:23.1]} 26. b4
{[%clk 0:04:27.1]} 26... f6 {[%clk 0:01:18.1]} 27. b5 {[%clk 0:04:24.3]} 27...
Ne5 {[%clk 0:01:03.4]} 28. bxc6 {[%clk 0:04:23.3]} 28... bxc6 {[%clk 0:01:02.3]}
29. Kc1 {[%clk 0:04:17.4]} 29... g6 {[%clk 0:01:02.8]} 30. Rf1 {[%clk 0:04:17]}
30... Rd8 {[%clk 0:00:56.8]} 31. b3 {[%clk 0:04:15.1]} 31... h5 {[%clk
0:00:54.8]} 32. Kd2 {[%clk 0:04:15.1]} 32... Rd7 {[%clk 0:00:52.5]} 33. Ra1
{[%clk 0:04:14.6]} 33... g5 {[%clk 0:00:53.7]} 34. Ke3 {[%clk 0:04:13.9]} 34...
Ng6 {[%clk 0:00:54.4]} 35. Ne2 {[%clk 0:04:08.1]} 35... h4 {[%clk 0:00:44.7]}
36. Nd4 {[%clk 0:04:03.1]} 36... Nf4 {[%clk 0:00:44.9]} 37. Nxc6+ {[%clk
0:03:34.8]} 37... Kd6 {[%clk 0:00:44.6]} 38. Ra6 {[%clk 0:03:33.2]} 38... Kc5
{[%clk 0:00:28.9]} 39. d4+ {[%clk 0:01:26]} 39... Kb5 {[%clk 0:00:21.1]} 40. Nb8
{[%clk 0:01:23.9]} 40... Rb7 {[%clk 0:00:20.4]} 41. c4+ {[%clk 0:01:20.5]} 41...
Kb4 {[%clk 0:00:21.8]} 42. Nc6+ {[%clk 0:01:20.4]} 42... Kc3 {[%clk 0:00:21.6]}
43. e5 {[%clk 0:01:03]} 43... fxe5 {[%clk 0:00:20.5]} 44. dxe5 {[%clk
0:01:02.9]} 44... Nxg2+ {[%clk 0:00:21.1]} 45. Ke4 {[%clk 0:01:03.5]} 45... Nf4
{[%clk 0:00:22.2]} 46. Rxa7 {[%clk 0:00:57.1]} 46... Rxb3 {[%clk 0:00:21.7]} 47.
Na5 {[%clk 0:00:56.3]} 47... Rb1 {[%clk 0:00:20.8]} 48. c5 {[%clk 0:00:56.9]}
48... Ne6 {[%clk 0:00:17.8]} 49. c6 {[%clk 0:00:55]} 49... Rb8 {[%clk
0:00:11.1]} 50. Kf5 {[%clk 0:00:54]} 50... Re8 {[%clk 0:00:09.1]} 51. Rc7 {[%clk
0:00:44.8]} 51... Kd4 {[%clk 0:00:09.1]} 52. Rd7+ {[%clk 0:00:44.2]} 52... Kc5
{[%clk 0:00:09.6]} 53. c7 {[%clk 0:00:43.5]} 53... Nd4+ {[%clk 0:00:09.4]} 54.
Kxg5 {[%clk 0:00:41]} 54... Rc8 {[%clk 0:00:09.1]} 55. Kf6 {[%clk 0:00:35.5]}
55... Nb5 {[%clk 0:00:04.7]} 56. Nb7+ {[%clk 0:00:18]} 56... Kc6 {[%clk
0:00:05.3]} 57. Nd6 {[%clk 0:00:10.5]} 57... Kxd7 {[%clk 0:00:06]} 58. Nxc8
{[%clk 0:00:10.7]} 58... Kxc8 {[%clk 0:00:07.9]} 59. Kg5 {[%clk 0:00:08.1]}
59... Kxc7 {[%clk 0:00:08.4]} 60. Kxh4 {[%clk 0:00:09.3]} 60... Kd7 {[%clk
0:00:10.3]} 61. Kg5 {[%clk 0:00:10.3]} 61... Ke6 {[%clk 0:00:12.2]} 62. Kf4
{[%clk 0:00:10.9]} 62... Nd4 {[%clk 0:00:11.5]} 63. h4 {[%clk 0:00:11.2]} 63...
Nc6 {[%clk 0:00:13.4]} 64. h5 {[%clk 0:00:11.9]} 64... Nxe5 {[%clk 0:00:15.3]}
65. h6 {[%clk 0:00:12.8]} 65... Nf7 {[%clk 0:00:15.5]} 66. h7 {[%clk 0:00:12.5]}
66... Kf6 {[%clk 0:00:17.4]} 67. h8=Q+ {[%clk 0:00:11.4]} 67... Nxh8 {[%clk
0:00:19.3]} 1/2-1/2

[Event "GrandPrix_30.05"]
[Site "Chess.com"]
[Date "2020.05.30"]
[Round "2"]
[White "Vnebo"]
[Black "GM_dmitrij"]
[Result "1/2-1/2"]
[WhiteElo "2157"]
[BlackElo "2473"]
[TimeControl "600+2"]
[EndTime "8:55:57 PDT"]
[Termination "Game drawn by repetition"]

1. e4 {[%clk 0:09:58.6]} 1... e5 {[%clk 0:10:00.2]} 2. Nf3 {[%clk 0:09:58.2]}
2... Nc6 {[%clk 0:10:01.5]} 3. d4 {[%clk 0:09:58.7]} 3... exd4 {[%clk
0:10:02.6]} 4. Bc4 {[%clk 0:10:00.1]} 4... Nf6 {[%clk 0:09:58.6]} 5. e5 {[%clk
0:10:00.2]} 5... Ne4 {[%clk 0:09:59.4]} 6. Bd5 {[%clk 0:09:51.1]} 6... Nc5
{[%clk 0:09:59.1]} 7. O-O {[%clk 0:09:52]} 7... Be7 {[%clk 0:09:48.8]} 8. Re1
{[%clk 0:09:30]} 8... Ne6 {[%clk 0:09:48.8]} 9. Nbd2 {[%clk 0:09:08.5]} 9... d6
{[%clk 0:09:30.9]} 10. Bxc6+ {[%clk 0:07:37.8]} 10... bxc6 {[%clk 0:09:30.5]}
11. Nb3 {[%clk 0:07:39.7]} 11... c5 {[%clk 0:09:15.8]} 12. c3 {[%clk 0:07:38.9]}
12... dxc3 {[%clk 0:09:01.9]} 13. bxc3 {[%clk 0:07:31.4]} 13... O-O {[%clk
0:08:55.2]} 14. c4 {[%clk 0:07:25.2]} 14... Ba6 {[%clk 0:06:42.6]} 15. Qc2
{[%clk 0:07:19.1]} 15... Bb7 {[%clk 0:06:34.4]} 16. Qc3 {[%clk 0:06:54.9]} 16...
Rb8 {[%clk 0:05:34.9]} 17. Bb2 {[%clk 0:06:20]} 17... d5 {[%clk 0:05:30.7]} 18.
cxd5 {[%clk 0:06:12]} 18... Bxd5 {[%clk 0:05:31.9]} 19. Red1 {[%clk 0:05:34.3]}
19... c6 {[%clk 0:05:29.5]} 20. Ba3 {[%clk 0:05:15.1]} 20... c4 {[%clk
0:05:09.3]} 21. Nbd4 {[%clk 0:04:50.9]} 21... Nxd4 {[%clk 0:04:45.5]} 22. Nxd4
{[%clk 0:04:44.6]} 22... Bxa3 {[%clk 0:04:28.6]} 23. Qxa3 {[%clk 0:04:29.1]}
23... Qg5 {[%clk 0:04:24.6]} 24. Qg3 {[%clk 0:04:06.7]} 24... Qxg3 {[%clk
0:04:05]} 25. hxg3 {[%clk 0:04:08.6]} 25... Rb2 {[%clk 0:03:55]} 26. Nf5 {[%clk
0:04:01.6]} 26... c3 {[%clk 0:02:57.5]} 27. Rdc1 {[%clk 0:01:18.5]} 27... c2
{[%clk 0:02:42.4]} 28. f3 {[%clk 0:01:03.1]} 28... Re8 {[%clk 0:01:46.7]} 29.
Nd4 {[%clk 0:00:44.4]} 29... Rxe5 {[%clk 0:01:44]} 30. Rxc2 {[%clk 0:00:43]}
30... Rxc2 {[%clk 0:01:44.5]} 31. Nxc2 {[%clk 0:00:44.9]} 31... Re2 {[%clk
0:01:43.3]} 32. Nb4 {[%clk 0:00:42.1]} 32... h5 {[%clk 0:01:02.4]} 33. Nxd5
{[%clk 0:00:26.1]} 33... cxd5 {[%clk 0:01:03.4]} 34. Rd1 {[%clk 0:00:27.3]}
34... Rxa2 {[%clk 0:01:01.2]} 35. Rxd5 {[%clk 0:00:28]} 35... g6 {[%clk
0:01:02.7]} 36. Rd8+ {[%clk 0:00:22.2]} 36... Kg7 {[%clk 0:01:03.8]} 37. Rd7
{[%clk 0:00:21.9]} 37... a5 {[%clk 0:01:00]} 38. Ra7 {[%clk 0:00:22.1]} 38... a4
{[%clk 0:01:01.6]} 39. Ra6 {[%clk 0:00:19.7]} 39... a3 {[%clk 0:01:02.2]} 40.
Kh2 {[%clk 0:00:20.9]} 40... g5 {[%clk 0:00:44.2]} 41. f4 {[%clk 0:00:15.6]}
41... g4 {[%clk 0:00:41.5]} 42. Ra5 {[%clk 0:00:15.6]} 42... Kg6 {[%clk
0:00:35]} 43. Rg5+ {[%clk 0:00:15]} 43... Kf6 {[%clk 0:00:31.4]} 44. Ra5 {[%clk
0:00:09.2]} 44... Ke6 {[%clk 0:00:32.4]} 45. Ra4 {[%clk 0:00:07.3]} 45... Kd5
{[%clk 0:00:21.7]} 46. Ra7 {[%clk 0:00:08.3]} 46... Kc4 {[%clk 0:00:09.5]} 47.
Rxf7 {[%clk 0:00:08.9]} 47... Rc2 {[%clk 0:00:08.4]} 48. Ra7 {[%clk 0:00:05.4]}
48... a2 {[%clk 0:00:09.7]} 49. f5 {[%clk 0:00:06.1]} 49... Kb3 {[%clk
0:00:09.9]} 50. f6 {[%clk 0:00:07]} 50... Rf2 {[%clk 0:00:11]} 51. Rb7+ {[%clk
0:00:05]} 51... Kc2 {[%clk 0:00:12.3]} 52. Rc7+ {[%clk 0:00:06.1]} 52... Kb1
{[%clk 0:00:13.5]} 53. Rb7+ {[%clk 0:00:06.5]} 53... Kc2 {[%clk 0:00:14]} 54.
Rc7+ {[%clk 0:00:05.8]} 54... Kb3 {[%clk 0:00:15.5]} 55. Rb7+ {[%clk 0:00:07]}
55... Ka3 {[%clk 0:00:12.9]} 56. Ra7+ {[%clk 0:00:07.9]} 56... Kb2 {[%clk
0:00:14.1]} 57. Rb7+ {[%clk 0:00:08.3]} 57... Kc1 {[%clk 0:00:15.7]} 58. Rc7+
{[%clk 0:00:07.2]} 58... Kd1 {[%clk 0:00:17.2]} 59. Ra7 {[%clk 0:00:08.3]} 59...
Kc1 {[%clk 0:00:09.4]} 60. f7 {[%clk 0:00:08.6]} 60... Kb1 {[%clk 0:00:10.9]}
61. Rb7+ {[%clk 0:00:09.5]} 61... Kc2 {[%clk 0:00:11.7]} 62. Rc7+ {[%clk
0:00:10]} 62... Kb2 {[%clk 0:00:12.8]} 63. Rb7+ {[%clk 0:00:11.1]} 63... Ka1
{[%clk 0:00:12.6]} 64. Ra7 {[%clk 0:00:06.9]} 64... Kb1 {[%clk 0:00:12.9]} 65.
Rb7+ {[%clk 0:00:07.9]} 65... Kc1 {[%clk 0:00:13.9]} 66. Rc7+ {[%clk 0:00:08.8]}
66... Kb1 {[%clk 0:00:15.5]} 67. Rb7+ {[%clk 0:00:10]} 1/2-1/2